fUSD/lending_fUSD_20250123
["ID","MTS","AMOUNT","RATE_DAILY","PERIOD"]
[350122356,1737643834768,-500.0,0.00016438,2]
[350122357,1737643834779,-500.0,0.00016438,2]
[350122358,1737643834788,-508.71980161,0.00016438,2]
[350122359,1737643834797,-500.0,0.00016438,2]
[350122360,1737643834806,-500.0,0.00016438,2]
[350122361,1737643834815,-509.15626747,0.00016438,2]
[350122362,1737643834826,-500.0,0.00016438,2]
[350122363,1737643834835,-500.0,0.00016438,2]
[350122364,1737643834848,-500.0,0.00016438,2]
[350122365,1737643834860,-503.28548461,0.00016438,2]
[350122366,1737643834874,-510.70626699,0.00016438,2]
[350122367,1737643834883,-500.0,0.00016438,2]
[350122368,1737643834893,-500.0,0.00016438,2]
[350122369,1737643834902,-500.0,0.00016438,2]
[350122370,1737643834912,-500.0,0.00016438,2]
[350122371,1737643834922,-500.0,0.00016438,2]
[350122372,1737643834932,-500.0,0.00016438,2]
[350122373,1737643834942,-505.93895286,0.00016438,2]
[350122374,1737643834951,-500.0,0.00016438,2]
[350122375,1737643834961,-500.0,0.00016438,2]
[350122376,1737643834970,-500.0,0.00016438,2]
[350122377,1737643834979,-500.0,0.00016438,2]
[350122378,1737643834988,-500.0,0.00016438,2]
[350122379,1737643834998,-505.16553549,0.00016438,2]
[350122380,1737643835007,-514.39431847,0.00016438,2]
[350122381,1737643835016,-502.87909864,0.00016438,2]
[350122382,1737643835026,-500.0,0.00016438,2]
[350122383,1737643835036,-505.58725743,0.00016438,2]
[350122384,1737643835045,-500.0,0.00016438,2]
[350122385,1737643835054,-500.0,0.00016438,2]
[350122386,1737643835063,-500.0,0.00016438,2]
[350122387,1737643835073,-500.0,0.00016438,2]
[350122388,1737643835083,-500.0,0.00016438,2]
[350122389,1737643835094,-500.0,0.00016438,2]
[350122390,1737643835104,-506.22419594,0.00016438,2]
[350122391,1737643835113,-500.0,0.00016438,2]
[350122392,1737643835122,-500.0,0.00016438,2]
[350122393,1737643835131,-500.0,0.00016438,2]
[350122394,1737643835141,-500.0,0.00016438,2]
[350122395,1737643835152,-500.0,0.00016438,2]
[350122396,1737643835162,-500.0,0.00016438,2]
[350122397,1737643835172,-500.0,0.00016438,2]
[350122398,1737643835183,-502.94594265,0.00016438,2]
[350122399,1737643835191,-500.0,0.00016438,7]
[350122400,1737643835202,-500.0,0.00016438,2]
[350122401,1737643835211,-500.0,0.00016438,2]
[350122402,1737643835221,-500.0,0.00016438,2]
[350122403,1737643835230,-502.93150602,0.00016438,2]
[350122404,1737643835239,-197.92276854,0.00016438,2]
[350122405,1737643835249,-500.0,0.00016438,2]
[350122406,1737643835258,-500.0,0.00016438,2]
[350122407,1737643835268,-602.73391875,0.00016438,2]
[350122408,1737643835278,-500.0,0.00016438,2]
[350122409,1737643835287,-500.0,0.00016438,2]
[350122410,1737643835296,-510.06330489,0.00016438,2]
[350122411,1737643835306,-500.0,0.00016438,2]
[350122412,1737643835316,-500.0,0.00016438,2]
[350122413,1737643835325,-500.0,0.00016438,2]
[350122414,1737643835335,-500.0,0.00016438,2]
[350122415,1737643835353,-500.0,0.00016438,2]
[350122416,1737643835362,-508.83939441,0.00016438,2]
[350122417,1737643835372,-500.0,0.00016438,2]
[350122418,1737643835381,-500.0,0.00016438,2]
[350122419,1737643835392,-500.0,0.00016438,2]
[350122420,1737643835401,-506.06384279,0.00016438,2]
[350122421,1737643835410,-500.0,0.00016438,2]
[350122422,1737643835419,-505.83962199,0.00016438,2]
[350122423,1737643835429,-500.0,0.00016438,2]
[350122424,1737643835439,-325.5444367,0.00016438,2]
[350122425,1737643835448,-500.0,0.00016438,2]
[350122426,1737643835458,-500.0,0.00016438,2]
[350122427,1737643835467,-500.0,0.00016438,2]
[350122428,1737643835477,-500.0,0.00016438,2]
[350122429,1737643835486,-500.0,0.00016438,2]
[350122430,1737643835496,-500.0,0.00016438,2]
[350122431,1737643835506,-593.98,0.00016438,2]
[350122432,1737643835515,-500.0,0.00016438,2]
[350122433,1737643835524,-500.0,0.00016438,2]
[350122434,1737643835534,-500.0,0.00016438,2]
[350122435,1737643835543,-504.6326069,0.00016438,2]
[350122436,1737643835553,-500.0,0.00016438,2]
[350122437,1737643835562,-500.0,0.00016438,2]
[350122438,1737643835572,-503.01119716,0.00016438,2]
[350122439,1737643835581,-501.18970478,0.00016438,2]
[350122440,1737643835596,-500.0,0.00016438,2]
[350122441,1737643835605,-500.0,0.00016438,2]
[350122442,1737643835615,-874.46,0.00016438,2]
[350122443,1737643835624,-504.7354938,0.00016438,2]
[350122444,1737643835633,-523.12174328,0.00016438,2]
[350122445,1737643835642,-503.63927575,0.00016438,2]
[350122446,1737643835651,-500.0,0.00016438,2]
[350122447,1737643835661,-513.37199484,0.00016438,2]
[350122448,1737643835671,-500.0,0.00016438,2]
[350122449,1737643835680,-500.0,0.00016438,2]
[350122450,1737643835690,-500.0,0.00016438,2]
[350122451,1737643835699,-500.0,0.00016438,2]
[350122452,1737643835709,-500.0,0.00016438,2]
[350122453,1737643835719,-500.0,0.00016438,2]
[350122454,1737643835728,-500.0,0.00016438,2]
[350122455,1737643835739,-500.0,0.00016438,2]
[350122456,1737643835748,-500.0,0.00016438,2]
[350122457,1737643835758,-500.0,0.00016438,2]
[350122458,1737643835769,-500.0,0.00016438,2]
[350122459,1737643835778,-500.0,0.00016438,2]
[350122460,1737643835788,-500.0,0.00016438,2]
[350122461,1737643835798,-500.0,0.00016438,2]
[350122462,1737643835808,-524.13108248,0.00016438,2]
[350122463,1737643835818,-500.0,0.00016438,2]
[350122464,1737643835827,-500.0,0.00016438,2]
[350122465,1737643835838,-500.0,0.00016438,2]
[350122466,1737643835853,-500.0,0.00016438,2]
[350122467,1737643835863,-500.0,0.00016438,2]
[350122468,1737643835873,-500.0,0.00016438,2]
[350122469,1737643835883,-505.79160372,0.00016438,2]
[350122470,1737643835892,-500.0,0.00016438,2]
[350122471,1737643835901,-500.0,0.00016438,2]
[350122472,1737643835911,-500.0,0.00016438,2]
[350122473,1737643835920,-614.42,0.00016438,2]
[350122474,1737643835930,-500.0,0.00016438,2]
[350122475,1737643835939,-502.11290081,0.00016438,2]
[350122476,1737643835950,-500.0,0.00016438,2]
[350122477,1737643835959,-500.0,0.00016438,2]
[350122478,1737643835969,-954.43,0.00016438,2]
[350122479,1737643835978,-500.0,0.00016438,2]
[350122480,1737643835987,-506.42700406,0.00016438,2]
[350122481,1737643835997,-500.0,0.00016438,2]
[350122482,1737643836006,-500.0,0.00016438,2]
[350122483,1737643836015,-500.0,0.00016438,2]
[350122484,1737643836025,-500.0,0.00016438,2]
[350122485,1737643836035,-500.93908961,0.00016438,2]
[350122486,1737643836044,-500.0,0.00016438,2]
[350122487,1737643836054,-500.0,0.00016438,2]
[350122488,1737643836063,-500.0,0.00016438,2]
[350122489,1737643836073,-500.0,0.00016438,2]
[350122490,1737643836082,-500.0,0.00016438,2]
[350122491,1737643836095,-500.0,0.00016438,2]
[350122492,1737643836105,-500.0,0.00016438,2]
[350122493,1737643836114,-500.0,0.00016438,2]
[350122494,1737643836123,-185.92187747,0.00016438,2]
[350122495,1737643836133,-500.0,0.00016438,2]
[350122496,1737643836142,-500.0,0.00016438,2]
[350122497,1737643836152,-500.0,0.00016438,2]
[350122498,1737643836161,-622.4047729,0.00016438,2]
[350122499,1737643836171,-500.0,0.00016438,2]
[350122500,1737643836180,-500.0,0.00016438,2]
[350122501,1737643836190,-502.15550912,0.00016438,2]
[350122502,1737643836199,-509.82916846,0.00016438,2]
[350122503,1737643836209,-500.0,0.00016438,2]
[350122504,1737643836219,-508.4808479,0.00016438,2]
[350122505,1737643836229,-507.18998974,0.00016438,2]
[350122506,1737643836238,-500.0,0.00016438,2]
[350122507,1737643836247,-500.0,0.00016438,2]
[350122508,1737643836257,-500.0,0.00016438,2]
[350122509,1737643836266,-501.40852191,0.00016438,2]
[350122510,1737643836276,-500.0,0.00016438,2]
[350122511,1737643836285,-500.0,0.00016438,2]
[350122512,1737643836294,-500.0,0.00016438,2]
[350122513,1737643836303,-509.7130476,0.00016438,2]
[350122514,1737643836313,-503.03008531,0.00016438,2]
[350122515,1737643836322,-500.0,0.00016438,2]
[350122516,1737643836331,-500.0,0.00016438,2]
[350122517,1737643836343,-483.55297968,0.00016438,2]
[350122518,1737643836353,-500.0,0.00016438,2]
[350122519,1737643836363,-500.0,0.00016438,2]
[350122520,1737643836372,-500.0,0.00016438,2]
[350122521,1737643836381,-500.0,0.00016438,2]
[350122522,1737643836390,-500.0,0.00016438,2]
[350122523,1737643836400,-500.6843892,0.00016438,2]
[350122524,1737643836409,-338.60656946,0.00016438,2]
[350122525,1737643836419,-500.0,0.00016438,2]
[350122526,1737643836428,-500.0,0.00016438,2]
[350122527,1737643836438,-506.34610234,0.00016438,2]
[350122528,1737643836447,-500.0,0.00016438,2]
[350122529,1737643836458,-500.0,0.00016438,2]
[350122530,1737643836467,-500.0,0.00016438,2]
[350122531,1737643836476,-500.0,0.00016438,2]
[350122532,1737643836486,-500.0,0.00016438,2]
[350122533,1737643836496,-500.0,0.00016438,2]
[350122534,1737643836506,-501.26794062,0.00016438,2]
[350122535,1737643836515,-500.0,0.00016438,2]
[350122536,1737643836525,-500.0,0.00016438,2]
[350122537,1737643836535,-500.0,0.00016438,2]
[350122538,1737643836544,-500.0,0.00016438,2]
[350122539,1737643836554,-500.0,0.00016438,2]
[350122540,1737643836564,-500.0,0.00016438,2]
[350122541,1737643836573,-500.0,0.00016438,2]
[350122542,1737643836583,-500.0,0.00016438,2]
[350122543,1737643836595,-502.34390483,0.00016438,2]
[350122544,1737643836605,-500.0,0.00016438,2]
[350122545,1737643836615,-500.0,0.00016438,2]
[350122546,1737643836624,-618.23,0.00016438,2]
[350122547,1737643836633,-500.0,0.00016438,2]
[350122548,1737643836642,-500.0,0.00016438,2]
[350122549,1737643836651,-500.0,0.00016438,2]
[350122550,1737643836660,-500.0,0.00016438,2]
[350122551,1737643836670,-500.0,0.00016438,2]
[350122552,1737643836679,-500.0,0.00016438,2]
[350122553,1737643836688,-500.0,0.00016438,2]
[350122554,1737643836697,-500.0,0.00016438,2]
[350122555,1737643836707,-516.53647168,0.00016438,2]
[350122556,1737643836716,-500.0,0.00016438,2]
[350122557,1737643836726,-500.0,0.00016438,2]
[350122558,1737643836736,-500.0,0.00016438,2]
[350122559,1737643836749,-500.0,0.00016438,2]
[350122560,1737643836760,-500.0,0.00016438,2]
[350122561,1737643836769,-700.1,0.00016438,2]
[350122562,1737643836778,-434.61689322,0.00016438,2]
[350122563,1737643836789,-500.0,0.00016438,2]
[350122564,1737643836799,-500.0,0.00016438,2]
[350122565,1737643836808,-500.0,0.00016438,2]
[350122566,1737643836817,-500.0,0.00016438,2]
[350122567,1737643836826,-500.0,0.00016438,2]
[350122568,1737643836836,-500.0,0.00016438,2]
[350122569,1737643836849,-503.32969849,0.00016438,2]
[350122570,1737643836861,-500.0,0.00016438,2]
[350122571,1737643836872,-500.0,0.00016438,2]
[350122572,1737643836885,-500.0,0.00016438,2]
[350122573,1737643836894,-646.29,0.00016438,2]
[350122574,1737643836903,-500.0,0.00016438,2]
[350122575,1737643836913,-500.0,0.00016438,2]
[350122576,1737643836922,-500.0,0.00016438,2]
[350122577,1737643836931,-500.0,0.00016438,2]
[350122578,1737643836940,-503.04163825,0.00016438,2]
[350122579,1737643836950,-500.0,0.00016438,2]
[350122580,1737643836962,-500.0,0.00016438,2]
[350122581,1737643836973,-500.65509482,0.00016438,2]
[350122582,1737643836984,-500.0,0.00016438,2]
[350122583,1737643836994,-500.0,0.00016438,2]
[350122584,1737643837003,-640.57,0.00016438,2]
[350122585,1737643837013,-500.0,0.00016438,2]
[350122586,1737643837023,-649.82,0.00016438,2]
[350122587,1737643837032,-211.41385323,0.00016438,2]
[350122588,1737643837041,-500.0,0.00016438,2]
[350122589,1737643837050,-501.34302046,0.00016438,2]
[350122590,1737643837060,-500.0,0.00016438,2]
[350122591,1737643837069,-500.0,0.00016438,2]
[350122592,1737643837078,-502.90160902,0.00016438,2]
[350122593,1737643837087,-500.0,0.00016438,2]
[350122594,1737643837099,-500.0,0.00016438,2]
[350122595,1737643837108,-500.0,0.00016438,2]
[350122596,1737643837118,-502.92470522,0.00016438,2]
[350122597,1737643837128,-506.06144654,0.00016438,2]
[350122598,1737643837137,-500.0,0.00016438,2]
[350122599,1737643837147,-500.0,0.00016438,2]
[350122600,1737643837156,-500.0,0.00016438,2]
[350122601,1737643837166,-500.78613708,0.00016438,2]
[350122602,1737643837175,-500.0,0.00016438,2]
[350122603,1737643837185,-501.38467604,0.00016438,2]
[350122604,1737643837194,-500.0,0.00016438,2]
[350122605,1737643837205,-500.0,0.00016438,2]
[350122606,1737643837214,-500.0,0.00016438,2]
[350122607,1737643837224,-500.0,0.00016438,2]
[350122608,1737643837233,-500.0,0.00016438,2]
[350122609,1737643837243,-502.97583748,0.00016438,2]
[350122610,1737643837252,-527.50941637,0.00016438,2]
[350122611,1737643837262,-503.19961808,0.00016438,2]
[350122612,1737643837271,-500.0,0.00016438,2]
[350122613,1737643837414,-506.09138236,0.00016438,2]
[350122614,1737643837424,-503.07621174,0.00016438,2]
[350122615,1737643837434,-500.0,0.00016438,2]
[350122616,1737643837443,-501.3885464,0.00016438,2]
[350122617,1737643837453,-504.87309752,0.00016438,2]
[350122618,1737643837463,-500.0,0.00016438,2]
[350122619,1737643837472,-500.0,0.00016438,2]
[350122620,1737643837482,-500.0,0.00016438,2]
[350122621,1737643837491,-501.15581935,0.00016438,2]
[350122622,1737643837501,-500.0,0.00016438,2]
[350122623,1737643837510,-500.0,0.00016438,2]
[350122624,1737643837520,-501.51291829,0.00016438,2]
[350122625,1737643837530,-692.91,0.00016438,2]
[350122626,1737643837539,-502.28044248,0.00016438,2]
[350122627,1737643837549,-500.0,0.00016438,2]
[350122628,1737643837560,-506.85485099,0.00016438,2]
[350122629,1737643837570,-503.63748551,0.00016438,2]
[350122630,1737643837580,-500.0,0.00016438,2]
[350122631,1737643837595,-502.71964346,0.00016438,2]
[350122632,1737643837605,-500.0,0.00016438,2]
[350122633,1737643837616,-500.0,0.00016438,2]
[350122634,1737643837626,-500.0,0.00016438,2]
[350122635,1737643837636,-500.52852465,0.00016438,2]
[350122636,1737643837646,-507.21336057,0.00016438,2]
[350122637,1737643837656,-500.0,0.00016438,2]
[350122638,1737643837666,-500.0,0.00016438,2]
[350122639,1737643837676,-504.54924388,0.00016438,2]
[350122640,1737643837686,-500.0,0.00016438,2]
[350122641,1737643837697,-508.90354847,0.00016438,2]
[350122642,1737643837708,-500.0,0.00016438,2]
[350122643,1737643837719,-500.0,0.00016438,2]
[350122644,1737643837729,-500.0,0.00016438,2]
[350122645,1737643837740,-500.0,0.00016438,2]
[350122646,1737643837753,-505.34690137,0.00016438,2]
[350122647,1737643837763,-500.0,0.00016438,2]
[350122648,1737643837774,-672.48,0.00016438,2]
[350122649,1737643837787,-500.0,0.00016438,2]
[350122650,1737643837797,-500.0,0.00016438,2]
[350122651,1737643837807,-500.0,0.00016438,2]
[350122652,1737643837818,-500.0,0.00016438,2]
[350122653,1737643837828,-500.0,0.00016438,2]
[350122654,1737643837844,-500.0,0.00016438,2]
[350122656,1737643837854,-500.0,0.00016438,2]
[350122658,1737643837864,-500.0,0.00016438,2]
[350122660,1737643837874,-722.67,0.00016438,2]
[350122662,1737643837884,-500.0,0.00016438,2]
[350122664,1737643837895,-300.0,0.00016438,2]
[350122665,1737643837904,-500.0,0.00016438,2]
[350122667,1737643837914,-500.0,0.00016438,2]
[350122669,1737643837924,-500.0,0.00016438,2]
[350122673,1737643837934,-500.0,0.00016438,2]
[350122677,1737643837945,-500.0,0.00016438,2]
[350122681,1737643837955,-500.7270777,0.00016438,2]
[350122683,1737643837965,-500.0,0.00016438,2]
[350122685,1737643837975,-500.36897167,0.00016438,2]
[350122687,1737643837985,-500.0,0.00016438,2]
[350122689,1737643837995,-500.0,0.00016438,2]
[350122691,1737643838005,-161.88003208,0.00016438,2]
[350122694,1737643838014,-500.0,0.00016438,2]
[350122696,1737643838024,-500.0,0.00016438,2]
[350122698,1737643838034,-507.5692572,0.00016438,2]
[350122700,1737643838043,-648.82,0.00016438,2]
[350122703,1737643838053,-500.0,0.00016438,2]
[350122705,1737643838063,-500.0,0.00016438,2]
[350122707,1737643838073,-501.42749335,0.00016438,2]
[350122710,1737643838083,-500.0,0.00016438,2]
[350122714,1737643838097,-502.26471306,0.00016438,2]
[350122718,1737643838107,-500.0,0.00016438,2]
[350122721,1737643838117,-500.0,0.00016438,2]
[350122724,1737643838127,-500.97484833,0.00016438,2]
[350122727,1737643838136,-500.0,0.00016438,2]
[350122730,1737643838146,-502.20081103,0.00016438,2]
[350122734,1737643838157,-744.32,0.00016438,2]
[350122737,1737643838167,-500.0,0.00016438,2]
[350122739,1737643838176,-502.00594357,0.00016438,2]
[350122741,1737643838186,-500.96660262,0.00016438,2]
[350122743,1737643838196,-596.94,0.00016438,2]
[350122746,1737643838207,-500.82211167,0.00016438,2]
[350122748,1737643838216,-500.0,0.00016438,2]
[350122749,1737643838226,-579.24,0.00016438,2]
[350122751,1737643838236,-500.0,0.00016438,2]
[350122754,1737643838246,-500.0,0.00016438,2]
[350122755,1737643838256,-501.20450485,0.00016438,2]
[350122757,1737643838268,-501.53145575,0.00016438,2]
[350122759,1737643838282,-500.0,0.00016438,2]
[350122761,1737643838292,-500.0,0.00016438,2]
[350122764,1737643838302,-500.0,0.00016438,2]
[350122765,1737643838312,-641.61,0.00016438,2]
[350122768,1737643838322,-500.0,0.00016438,2]
[350122769,1737643838332,-500.0,0.00016438,2]
[350122771,1737643838345,-500.0,0.00016438,2]
[350122773,1737643838355,-500.0,0.00016438,2]
[350122775,1737643838364,-500.0,0.00016438,2]
[350122777,1737643838374,-213.48169578,0.00016438,2]
[350122779,1737643838383,-500.0,0.00016438,2]
[350122781,1737643838394,-500.0,0.00016438,2]
[350122783,1737643838404,-500.0,0.00016438,2]
[350122785,1737643838414,-500.0,0.00016438,2]
[350122788,1737643838424,-500.0,0.00016438,2]
[350122789,1737643838433,-500.0,0.00016438,2]
[350122791,1737643838444,-500.0,0.00016438,2]
[350122793,1737643838454,-500.0,0.00016438,2]
[350122795,1737643838464,-495.88474641,0.00016438,2]
[350122798,1737643838474,-500.0,0.00016438,2]
[350122800,1737643838484,-500.0,0.00016438,2]
[350122801,1737643838493,-500.0,0.00016438,2]
[350122803,1737643838503,-679.49,0.00016438,2]
[350122805,1737643838513,-500.0,0.00016438,2]
[350122807,1737643838522,-500.0,0.00016438,2]
[350122810,1737643838532,-500.0,0.00016438,2]
[350122811,1737643838541,-622.88,0.00016438,2]
[350122813,1737643838551,-500.0,0.00016438,2]
[350122815,1737643838561,-500.0,0.00016438,2]
[350122817,1737643838570,-505.62308364,0.00016438,2]
[350122820,1737643838580,-500.0,0.00016438,2]
[350122821,1737643838590,-500.0,0.00016438,2]
[350122823,1737643838601,-500.0,0.00016438,2]
[350122825,1737643838611,-500.0,0.00016438,2]
[350122827,1737643838620,-500.0,0.00016438,2]
[350122829,1737643838631,-500.0,0.00016438,2]
[350122831,1737643838641,-500.0,0.00016438,2]
[350122833,1737643838650,-505.40641816,0.00016438,2]
[350122835,1737643838659,-500.0,0.00016438,2]
[350122837,1737643838669,-500.0,0.00016438,2]
[350122839,1737643838679,-500.0,0.00016438,2]
[350122841,1737643838688,-504.47660298,0.00016438,2]
[350122843,1737643838698,-506.22100151,0.00016438,2]
[350122845,1737643838708,-500.0,0.00016438,2]
[350122847,1737643838717,-500.0,0.00016438,2]
[350122849,1737643838727,-799.54,0.00016438,2]
[350122851,1737643838735,-500.0,0.00016438,2]
[350122853,1737643838747,-500.0,0.00016438,2]
[350122855,1737643838757,-500.0,0.00016438,2]
[350122857,1737643838768,-500.0,0.00016438,2]
[350122859,1737643838778,-500.0,0.00016438,2]
[350122861,1737643838789,-500.0,0.00016438,2]
[350122863,1737643838798,-500.0,0.00016438,2]
[350122865,1737643838808,-500.0,0.00016438,2]
[350122867,1737643838819,-507.87201556,0.00016438,2]
[350122869,1737643838828,-500.0,0.00016438,2]
[350122871,1737643838838,-821.11,0.00016438,2]
[350122874,1737643838851,-569.5,0.00016438,2]
[350122876,1737643838861,-698.74,0.00016438,2]
[350122878,1737643838871,-500.0,0.00016438,2]
[350122880,1737643838881,-500.0,0.00016438,2]
[350122882,1737643838891,-500.0,0.00016438,2]
[350122884,1737643838901,-193.09562324,0.00016438,2]
[350122886,1737643838910,-500.0,0.00016438,2]
[350122887,1737643838919,-768.48,0.00016438,2]
[350122889,1737643838929,-2170.6,0.00016438,2]
[350122891,1737643838940,-500.0,0.00016438,2]
[350122893,1737643838950,-500.0,0.00016438,2]
[350122896,1737643838959,-500.0,0.00016438,2]
[350122897,1737643838969,-500.0,0.00016438,2]
[350122900,1737643838978,-500.0,0.00016438,2]
[350122902,1737643838988,-1206.65,0.00016438,2]
[350122903,1737643838997,-2487.28,0.00016438,2]
[350122905,1737643839007,-500.0,0.00016438,2]
[350122907,1737643839016,-500.0,0.00016438,2]
[350122909,1737643839026,-500.0,0.00016438,2]
[350122910,1737643839035,-2347.43,0.00016438,2]
[350122911,1737643839044,-901.23,0.00016438,2]
[350122912,1737643839054,-500.0,0.00016438,2]
[350122913,1737643839063,-500.0,0.00016438,2]
[350122914,1737643839072,-500.0,0.00016438,2]
[350122915,1737643839081,-500.0,0.00016438,2]
[350122916,1737643839090,-830.91,0.00016438,2]
[350122917,1737643839103,-500.0,0.00016438,2]
[350122918,1737643839111,-2021.14,0.00016438,2]
[350122919,1737643839120,-389.62549681,0.00016438,2]
[350122920,1737643839130,-1115.79,0.00016438,2]
[350122922,1737643839139,-500.0,0.00016438,2]
[350122924,1737643839149,-2287.61,0.00016438,2]
[350122926,1737643839159,-500.0,0.00016438,2]
[350122928,1737643839168,-500.0,0.00016438,2]
[350122930,1737643839178,-766.14,0.00016438,2]
[350122932,1737643839187,-1316.3,0.00016438,2]
[350122934,1737643839196,-500.0,0.00016438,2]
[350122936,1737643839206,-500.0,0.00016438,2]
[350122937,1737643839216,-1012.01,0.00016438,2]
[350122939,1737643839226,-338.04731809,0.00016438,2]
[350122941,1737643839234,-500.0,0.00016438,2]
[350122943,1737643839243,-500.0,0.00016438,2]
[350122945,1737643839253,-503.8154052,0.00016438,2]
[350122947,1737643839263,-500.0,0.00016438,2]
[350122949,1737643839272,-500.0,0.00016438,2]
[350122951,1737643839281,-963.15,0.00016438,2]
[350122953,1737643839291,-2938.45,0.00016438,2]
[350122955,1737643839300,-500.0,0.00016438,2]
[350122957,1737643839309,-500.0,0.00016438,2]
[350122959,1737643839318,-500.0,0.00016438,2]
[350122961,1737643839327,-2393.91,0.00016438,2]
[350122963,1737643839336,-500.0,0.00016438,2]
[350122965,1737643839348,-500.0,0.00016438,2]
[350122967,1737643839357,-500.0,0.00016438,2]
[350122969,1737643839367,-1127.34,0.00016438,2]
[350122971,1737643839377,-948.15,0.00016438,2]
[350122973,1737643839387,-574.58995959,0.00016438,2]
[350122975,1737643839396,-500.0,0.00016438,2]
[350122977,1737643839405,-4558.7,0.00016438,2]
[350122979,1737643839416,-500.0,0.00016438,2]
[350122981,1737643839426,-500.0,0.00016438,2]
[350122983,1737643839436,-1223.71,0.00016438,2]
[350122985,1737643839446,-500.0,0.00016438,2]
[350122987,1737643839455,-3935.14,0.00016438,2]
[350122989,1737643839465,-500.0,0.00016438,2]
[350122991,1737643839475,-500.0,0.00016438,2]
[350122993,1737643839486,-500.0,0.00016438,2]
[350122995,1737643839496,-523.94150337,0.00016438,2]
[350122997,1737643839506,-812.59,0.00016438,2]
[350122999,1737643839516,-522.77373854,0.00016438,2]
[350123001,1737643839526,-500.0,0.00016438,2]
[350123003,1737643839537,-500.0,0.00016438,2]
[350123005,1737643839547,-2339.7,0.00016438,2]
[350123007,1737643839558,-2034.82984,0.00016438,2]
[350123009,1737643839568,-1653.76,0.00016438,2]
[350123011,1737643839579,-838.97,0.00016438,2]
[350123013,1737643839589,-960.64,0.00016438,2]
[350123015,1737643839603,-500.0,0.00016438,2]
[350123017,1737643839613,-500.0,0.00016438,2]
[350123019,1737643839624,-2151.62,0.00016438,2]
[350123021,1737643839633,-577.0049201,0.00016438,2]
[350123023,1737643839644,-1009.87,0.00016438,2]
[350123025,1737643839654,-695.81,0.00016438,2]
[350123027,1737643839664,-500.0,0.00016438,2]
[350123029,1737643839674,-500.0,0.00016438,2]
[350123031,1737643839684,-500.0,0.00016438,2]
[350123033,1737643839694,-1277.74,0.00016438,2]
[350123035,1737643839705,-500.0,0.00016438,2]
[350123037,1737643839715,-1117.02,0.00016438,2]
[350123039,1737643839726,-500.0,0.00016438,2]
[350123041,1737643839736,-500.0,0.00016438,2]
[350123043,1737643839752,-500.0,0.00016438,2]
[350123045,1737643839762,-684.15,0.00016438,2]
[350123047,1737643839773,-500.0,0.00016438,2]
[350123049,1737643839783,-886.93,0.00016438,2]
[350123051,1737643839794,-500.0,0.00016438,2]
[350123053,1737643839804,-858.47,0.00016438,2]
[350123055,1737643839814,-500.0,0.00016438,2]
[350123057,1737643839824,-500.0,0.00016438,2]
[350123059,1737643839834,-952.26,0.00016438,2]
[350123061,1737643839845,-500.0,0.00016438,2]
[350123063,1737643839855,-500.0,0.00016438,2]